Cogmind - Beta 14 @@@ ROGUE MODE // 2024.11.10 @ 23:52:08 Player: Kate+Gabe4evr Result: Destroyed by 0Z-XT6(R) with Subdweller Beam Cannon Performance ------------- Evolutions (0) 0 Regions Visited (2) 400 Robots Destroyed (12) 60 Value Destroyed (320) 320 Prototype IDs (0) 0 Alien Tech Used (0) 0 Bonus (0) 0 TOTAL SCORE: 780 Bonus ------- None Cogmind --------- Core Integrity 0/250 Matter 279/300 Energy 248/250 System Corruption 0% Temperature Cool (9) Movement Rolling (105) Ox1 Location -10/Subcaves Parts ------- > --- POWER (1) -------- Ion Engine > --- PROPULSION (2) --- Wheel Compact Wheel > --- UTILITY (2) ------ Heat Sink Large Storage Unit > --- WEAPON (2) ------- Medium Laser Light Assault Rifle > --- INVENTORY (15) --- Small Storage Unit Visual Processing Unit Signal Interpreter EM Pulse Gun EM Shotgun Assault Rifle Peak State ------------ > --- POWER ------------ Light Ion Engine > --- PROPULSION ------- Wheel Compact Wheel > --- UTILITY ---------- Heat Sink Large Storage Unit > --- WEAPON ----------- EM Shotgun EM Shotgun > --- INVENTORY -------- Ion Engine Small Storage Unit Visual Processing Unit Signal Interpreter EM Pulse Gun EM Shotgun Medium Laser Assault Rifle Light Assault Rifle [Rating: 10] Favorites ----------- Power Light Ion Engine Engine Light Ion Engine Propulsion Compact Wheel Wheel Compact Wheel Utility Large Storage Unit Device Heat Sink Storage Large Storage Unit Weapon EM Shotgun Energy Gun EM Shotgun Ballistic Gun Assault Rifle Build | -11 -10 -10 ------- Run | Yrd Mat Sub Slots Evolved . | . . . Power . | . . . Propulsion . | . . . Utility . | . . . Weapon . | . . . Parts Attached 17 | 6 6 5 Power 2 | 1 1 . Engine 2 | 1 1 . Core . | . . . Reactor . | . . . Propulsion 3 | 2 . 1 Treads . | . . . Leg . | . . . Wheel 3 | 2 . 1 Hover . | . . . Flight . | . . . Utility 3 | 1 2 . Device 1 | . 1 . Storage 2 | 1 1 . Processor . | . . . Hackware . | . . . Protection . | . . . Artifact . | . . . Weapon 9 | 2 3 4 Energy Gun 7 | 2 2 3 Energy Cannon . | . . . Ballistic Gun 2 | . 1 1 Ballistic Cannon . | . . . Launcher . | . . . Special Weapon . | . . . Impact Weapon . | . . . Slashing Weapon . | . . . Piercing Weapon . | . . . Special Melee Weapon . | . . . Unidentified Prototypes . | . . . Parts Lost 5 | . 1 4 Power 1 | . 1 . Propulsion 1 | . . 1 Utility . | . . . Weapon 3 | . . 3 Highest Loss Streak 3 | . 1 3 To Critical Strikes . | . . . Average Slot Usage (%) 96 | . 96 96 Engine 14 | . 14 14 Wheel 27 | . 28 27 Device 11 | . 10 14 Storage 14 | . 14 14 Energy Gun 22 | . 20 24 Ballistic Gun 4 | . 7 . Peak Build Rating 10 | 6 10 10 Average Rating 7 | 4 7 7 On Entrance 5 | . 6 10 Naked Turns . | . . . Heaviest Build 32 | 12 32 32 Greatest Support 26 | 26 26 26 Greatest Overweight (x) 1 | . 1 1 Average Overweight (x) . | . . 1 Largest Inventory Capacity 15 | 8 15 15 Average Capacity 14 | 6 14 15 Most Carried 11 | 2 11 10 Average Carried 6 | 1 6 7 Final Capacity 15 | 8 15 15 Final Carried 10 | 2 10 6 Class Distribution -------------------- 100% | Mutant Dominant Class ---------------- Mutant | -10/Materials Mutant | -10/Subcaves Resources | -11 -10 -10 ----------- Run | Yrd Mat Sub Matter Collected 396 | 196 175 25 Remotely . | . . . Salvage Created 417 | . 297 120 Parts 20 | . 16 4 Haulers Intercepted . | . . . Recyclers Shooed 1 | . 1 . Parts Field Recycled . | . . . Retrieved Matter . | . . . Parts Self-Destructed 7 | . . 7 Prevented . | . . . Kills | -11 -10 -10 ------- Run | Yrd Mat Sub Combat Hostiles Destroyed 10 | . 8 2 Guns 7 | . 5 2 AOE 3 | . 3 . Classes Destroyed 5 | . 4 1 Worker 1 | . 1 . Watcher 1 | . 1 . Swarmer 3 | . 3 . Grunt 5 | . 5 . Subdweller 2 | . . 2 Best Kill Streak 3 | . 3 2 Combat Bots Only 3 | . 3 2 Max Kills in Single Turn 2 | . 2 1 Gunslinging . | . . . Exploded 2 | . 2 . Melee . | . . . Uniques/NPCs Destroyed . | . . . Combat | -11 -10 -10 -------- Run | Yrd Mat Sub Hostile Shots Fired 49 | . 28 21 Missed 10 | . 6 4 Damage Taken 750 | . 323 427 Core 272 | . 156 116 Absorbed by Shields . | . . . Core Remaining (%) 100 | 100 . . Volleys Fired 36 | . 25 11 Largest 2 | . 2 2 Hottest 90 | . 90 90 Shots Fired 69 | . 50 19 Gun 69 | . 50 19 Cannon . | . . . Launcher . | . . . Special . | . . . Kinetic 18 | . 17 1 Thermal 18 | . 17 1 Explosive . | . . . Electromagnetic 33 | . 16 17 Robot Hit Streak 20 | . 12 20 Robot Miss Streak 5 | . 5 1 Penetration Max . | . . . Secondary Targets . | . . . Shots Hit Robots 51 | . 32 19 Core Hits 25 | . 17 8 Critical Kills . | . . . Critical Parts Destroyed . | . . . Critical Strikes . | . . . Melee Attacks . | . . . Impact . | . . . Slashing . | . . . Piercing . | . . . Sneak Attacks . | . . . Combat Hostiles . | . . . Follow-up Attacks . | . . . Damage Inflicted 829 | . 583 246 Guns 688 | . 442 246 Cannons . | . . . Explosions 141 | . 141 . Melee . | . . . Ramming . | . . . Kinetic 170 | . 160 10 Thermal 294 | . 282 12 Explosive . | . . . Electromagnetic 365 | . 141 224 Impact . | . . . Slashing . | . . . Piercing . | . . . Highest Corruption . | . . . Average Corruption . | . . . Corruption Purged . | . . . Corruption Blocked . | . . . Overload Shots . | . . . Overflow Damage . | . . . Projectiles . | . . . Explosions . | . . . Melee . | . . . Knockbacks . | . . . Impact . | . . . Kinetic . | . . . Secondary . | . . . Self-Inflicted Damage 29 | . 29 . Shots 1 | . 1 . Rammed . | . . . Targets Rammed . | . . . Kicked . | . . . Crushed . | . . . Highest Temperature 231 | . 231 . Average Temperature 102 | . 102 . Received Heat Transfer 246 | . 141 105 Siege Activations . | . . . Robots Corrupted . | . . . Combat Hostiles . | . . . Parts Fried 4 | . 1 3 Impact Corruptions . | . . . Robots Melted . | . . . Combat Hostiles . | . . . Parts Melted 1 | . 1 . Heat Transferred 544 | . 507 37 Parts Sabotaged . | . . . Parts Stolen . | . . . Parts Stripped . | . . . Power Chain Reactions 2 | . 2 . Alert | -11 -10 -10 ------- Run | Yrd Mat Sub Peak Influence 230 | . 230 . Initial . | . . . Average 119 | . 129 . Maximum Alert Level 1 | . 1 . Low Security (%) 63 | 100 61 . Level 1 36 | . 38 . Level 2 . | . . . Level 3 . | . . . Level 4 . | . . . Level 5 . | . . . High Security . | . . . Max Security . | . . . Squads Dispatched 1 | . 1 . Investigation . | . . . Extermination . | . . . Reinforcement 1 | . 1 . Assault . | . . . Garrison . | . . . Intercept . | . . . Searches Triggered . | . . . Construction Impeded . | . . . Haulers Reinforced . | . . . Active Scanning Responses . | . . . Cargo Convoy Interrupts . | . . . Stealth | -11 -10 -10 --------- Run | Yrd Mat Sub Distress Signals 5 | . 5 . Communications Jammed . | . . . Distress Signals . | . . . Times Spotted 26 | . 22 4 Peak Tracking Total 7 | . 7 2 Tactical Retreats 3 | . 3 . Traps | -11 -10 -10 ------- Run | Yrd Mat Sub Traps Triggered 1 | . . 1 Indirectly . | . . . Trap Hack Attempts . | . . . Triggered . | . . . Disarmed . | . . . Reprogrammed . | . . . Reused . | . . . Traps Extracted . | . . . Installed . | . . . Triggered . | . . . Machines | -11 -10 -10 ---------- Run | Yrd Mat Sub Machines Disabled 1 | . 1 . Max in Single Turn 1 | . 1 . Machines Repaired . | . . . Machines Dismantled . | . . . Machines Sabotaged . | . . . Overloaded Fab Kills . | . . . Hacking | -11 -10 -10 --------- Run | Yrd Mat Sub Machines Accessed . | . . . Terminals . | . . . Fabricators . | . . . Repair Stations . | . . . Recycling Units . | . . . Scanalyzers . | . . . Garrison Access . | . . . Total Hacks . | . . . Successful . | . . . Failed . | . . . Catastrophic . | . . . Database Lockouts . | . . . Manual . | . . . Terminals . | . . . Fabricators . | . . . Repair Stations . | . . . Recycling Units . | . . . Scanalyzers . | . . . Garrison Access . | . . . Terminal Hacks . | . . . Fabricator Hacks . | . . . Repair Station Hacks . | . . . Recycling Unit Hacks . | . . . Scanalyzer . | . . . Garrison Access Hacks . | . . . Unauthorized Hacks . | . . . Terminals . | . . . Fabricators . | . . . Repair Stations . | . . . Recycling Units . | . . . Scanalyzers . | . . . Garrison Access . | . . . Data Cores Recovered . | . . . Used . | . . . Hacking Detections . | . . . Full Trace Events . | . . . Feedback Events . | . . . Feedback Blocked . | . . . Robot Schematics Acquired . | . . . Robots Built . | . . . Authchips . | . . . Time . | . . . Total Robot Build Rating . | . . . Part Schematics Acquired . | . . . Parts Built . | . . . Authchips . | . . . Time . | . . . Total Part Build Rating . | . . . Parts Repaired . | . . . Time . | . . . Parts Recycled . | . . . Recycled Matter . | . . . Retrieved Matter . | . . . Retrieved Components . | . . . Parts Scanalyzed . | . . . Part Schematics Acquired . | . . . Parts Damaged . | . . . Bothacking | -11 -10 -10 ------------ Run | Yrd Mat Sub Used RIF Installer . | . . . Robots Hacked . | . . . Non-combat . | . . . Combat . | . . . Robot Hacks Applied . | . . . Relay Couplers Released . | . . . Fabnet Peak Effective % . | . . . Robots Rewired . | . . . Allies Hacked . | . . . Hacks Repelled . | . . . Allies | -11 -10 -10 -------- Run | Yrd Mat Sub Total Allies . | . . . Largest Group . | . . . Highest-Rated Group . | . . . Highest-Rated Ally . | . . . Total Orders . | . . . Ally Attacks . | . . . Total Damage . | . . . Kills . | . . . Allies Corrupted . | . . . Allies Melted . | . . . Intel | -11 -10 -10 ------- Run | Yrd Mat Sub Robot Analysis Total . | . . . Derelict Logs Recovered . | . . . Drone Launches . | . . . Drone Recoveries . | . . . Exploration | -11 -10 -10 ------------- Run | Yrd Mat Sub Turns Passed 1062 | 52 668 342 Spaces Moved 673 | 45 348 280 Core 3 | 3 . . Treads . | . . . Legs . | . . . Wheels 670 | 42 348 280 Hover . | . . . Flight . | . . . Fastest Speed 50 | 50 90 105 Average Speed 103 | 86 103 105 Slowest Speed 115 | 90 105 115 Overloaded Moves . | . . . Propulsion Burnouts . | . . . Robots Hopped . | . . . Cave-ins Triggered . | . . . Exploration Rate (%) 27 | 4 49 30 Regions Visited 2 Branch Regions 1 Pre-discovered Areas . | . . . Known Exits Taken . | . . . Unknown Exits Taken 2 | 1 1 . Scrap Searched . | . . . Spaces Dug . | . . . Terrain Destroyed 41 | . 41 . Melee . | . . . Projectile . | . . . AOE 41 | . 41 . Terrain Rammed . | . . . Walls Destroyed . | . . . Machines Disabled . | . . . Actions | -11 -10 -10 --------- Run | Yrd Mat Sub Total 964 | 54 603 307 Wait 228 | 2 215 11 Move 671 | 44 347 280 Hop . | . . . Pick Up 9 | 2 7 . Fast Attach 9 | 6 3 . Attach 6 | . 2 4 Detach 3 | . 3 . Swap 2 | . 1 1 Drop . | . . . Fire 36 | . 25 11 Melee . | . . . Ram . | . . . Kick . | . . . Crush . | . . . Escape Stasis . | . . . Rewire . | . . . Trap . | . . . Miscellaneous . | . . . Route ------- -11/Scrapyard -10/Materials (discovered 3 exits: [*Mat] / [*Min] / [*Sub]) -10/Subcaves History --------- Turn | Location | Event 6 | -11/Scrapyard | Discovered new exit (range 16) 53 | -11/Scrapyard | Entered Materials 219 | -10/Materials | Core integrity fell below 50% 307 | -10/Materials | Build established: Mutant 399 | -10/Materials | Discovered new exit (range 9) 532 | -10/Materials | Discovered new exit (range 10) 585 | -10/Materials | Discovered new exit (range 15) 721 | -10/Materials | Entered Subcaves 747 | -10/Subcaves | Core integrity fell below 20% 786 | -10/Subcaves | Lost 3 parts (1n2w) 866 | -10/Subcaves | Shifting Twisted Machinery released Mak. Kinetic Plating 1063 | -10/Subcaves | Destroyed by 0Z-XT6(R) with Subdweller Beam Cannon Last Messages --------------- 00709_ R-06 Scavenger collects Signal Interpreter. LOCATION=UNKNOWN AMBIENT_HEAT=-10 GOAL=ESCAPE 00740_ JB-DHN(R) IFF system glitched. 00742_ EM Shotgun destroyed. 00750_ Disposable Heat Sink fried. 00750_ Sub. Laser fried. 00750_ JB-DHN(R) destroyed. 00755_ Wheel destroyed. 00759_ Sub. Optics fried. 00759_ RE-LYI(R) destroyed. 00762_ Acquired 15 matter. 00766_ Acquired 10 matter. Mak. Kinetic Plating falls loose from the Twisted Machinery. 00980_ Triggered Piercing Trap. 00980_ Spikes shoot up from the floor. 00980_ Critical hit (Impale). 00980_ EM Shotgun destroyed. 00980_ Critical hit (Impale). Map ----- +----------------------------------------------------+ | ?????????????????????????????????????????????????? | | ?????????????????????????????????????????????????? | | ?????????????????????????????????????????????????? | | ?????????????????????????????????????????????????? | | ?????????????????????????????????????????????????? | | ?????????????????????????????????????????????????? | | ?????????????????????????????????????????????????? | | ?????????????????????????????????????????????????? | | ?????????????????????????????????????????????????? | | ?????????????????????????????????????????????????? | | ?????????????????????????????????????????????????? | | ?????????????????????????????????????????????????? | | ?????????????????????????????????????????????????? | | ?????????????????????????????????????????????????? | | ?????????????????????????????????????????????????? | | ?????????????????????????????????????????????????? | | ?????????????????????????????????????????????????? | | ?????????????????????????????????????????????????? | | ?????????????????????????????????????????????????? | | ?????????????????????????????????????????????????? | | ?????????????????????????????????????????????????? | | ?????????????????????#####???????????????????????? | | ?????????????????????# ##??????????????????????? | | ?????????????????????# #??????????????????????? | | ????????????????????## #??????????????????????? | | ????????????????????# @#??????????????????????? | | ????????????????????# R##??????????????????????? | | ????????????????????# R#???????????????????????? | | ????????????????????# ####????????????????????? | | ????????????????????# #????????????????????? | | ????????????????????## #????????????????????? | | ????????????????????## ##????????????????????? | | ???????????????????## ##????????????????????? | | ??????????????????## ###??????????????????? | | ?????????????????## #####??????????#???? | | #??????????????### ## #????#???? #??? | | #??????????????# #??? ##?? ## | | #???????####???# #??? ## | | #######?# ##??#### #??? | | ## ## ### ####??# #### | | #### | | ## ## | | ## #### ## | | ###### ## #??# ####### ##### ### | | ?????###### ## #??####?????#####????????? | | ??????????###############????????????????????????? | | ?????????????????????????????????????????????????? | | ?????????????????????????????????????????????????? | | ?????????????????????????????????????????????????? | | ?????????????????????????????????????????????????? | +----------------------------------------------------+ Best States ------------- Heat Dissipation 35 Energy Generation 10 Energy Capacity 250 Matter Stores 300 Matter Capacity 300 Sight Range 16 Terrain Scan Density 10 Evasion (%) 42 Item Schematics ----------------- None Robot Schematics ------------------ None Fabricated ------------ Nothing Alien Tech Used ----------------- None Achievements -------------- None Challenges ------------ None Game ------ Seed HardcellLightpackSword Manual? 0 Play Time 00:06:47 Cumulative 67.0 hours Start 2024.11.10 @ 23:46:53 End 2024.11.10 @ 23:52:08 Sessions 1 Manual Loads 0 Difficulty Rogue Special Mode None Game No. 130 Rogue 130 Adventurer 0 Explorer 0 Win Type - Total 1 Types 1/0/0/0/0/0/0/0/0 Lore% 52 Gallery% 55 Achievement% 46 Wizard Run 0 Options --------- Layout 0 ASCII 0 Keyboard 1 Movement Numpad Keybinds 0 Fullscreen 2 Font 24/Terminus Map View 76x50 Zoom Use 0% Tactical HUD 1 Map Filters NONE Filters NONE Steam 1 RUN: fc64a818-f0b8-420d-9c44-4e3dae31d55b